Workbook

Sheet reads_statistics
A1: Sample | B1: Total Reads Count | C1: # merged | D1: % merged | E1: # quality fitered | F1: % quality fitered | G1: # with good alignment | H1: % with good alignment | I1: # non-chimeric | J1: % non-chimeric | K1: # after environmental removed | L1: % after environmental removed | M1: # successfully classified | N1: % successfully classified
A2: E1 | B2: 36302 | C2: 33457 | D2: =C2/B2 -> 92.16% | E2: 15001 | F2: =E2/B2 -> 41.32% | G2: 14428 | H2: =G2/B2 -> 39.74% | I2: 11087 | J2: =I2/B2 -> 30.54% | K2: 11083 | L2: =K2/B2 -> 30.53% | M2: 8931 | N2: =M2/B2 -> 24.60%
A3: E2 | B3: 36485 | C3: 33077 | D3: =C3/B3 -> 90.66% | E3: 15859 | F3: =E3/B3 -> 43.47% | G3: 15724 | H3: =G3/B3 -> 43.10% | I3: 11861 | J3: =I3/B3 -> 32.51% | K3: 11860 | L3: =K3/B3 -> 32.51% | M3: 9044 | N3: =M3/B3 -> 24.79%
A4: E3 | B4: 60979 | C4: 57795 | D4: 94.78% | E4: 28557 | F4: 46.83% | G4: 28184 | H4: 46.22% | I4: 22043 | J4: 36.15% | K4: 22037 | L4: 36.14% | M4: 18222 | N4: 29.88%
A5: E4 | B5: 50246 | C5: 47774 | D5: 95.08% | E5: 24578 | F5: 48.92% | G5: 24106 | H5: 47.98% | I5: 19543 | J5: 38.89% | K5: 19542 | L5: 38.89% | M5: 15949 | N5: 31.74%
A6: E5 | B6: 46628 | C6: 44412 | D6: 95.25% | E6: 23150 | F6: 49.65% | G6: 22729 | H6: 48.75% | I6: 16769 | J6: 35.96% | K6: 16768 | L6: 35.96% | M6: 12225 | N6: 26.22%
A7: E6 | B7: 34793 | C7: 31887 | D7: 91.65% | E7: 14968 | F7: 43.02% | G7: 14824 | H7: 42.61% | I7: 11778 | J7: 33.85% | K7: 11756 | L7: 33.79% | M7: 9554 | N7: 27.46%
A8: E7 | B8: 61167 | C8: 55949 | D8: 91.47% | E8: 26186 | F8: 42.81% | G8: 25879 | H8: 42.31% | I8: 20228 | J8: 33.07% | K8: 20223 | L8: 33.06% | M8: 15066 | N8: 24.63%
A9: E8 | B9: 69358 | C9: 59150 | D9: 85.28% | E9: 27645 | F9: 39.86% | G9: 27316 | H9: 39.38% | I9: 20190 | J9: 29.11% | K9: 20187 | L9: 29.11% | M9: 16872 | N9: 24.33%
A10: E9 | B10: 34097 | C10: 30608 | D10: 89.77% | E10: 14603 | F10: 42.83% | G10: 14429 | H10: 42.32% | I10: 10089 | J10: 29.59% | K10: 10089 | L10: 29.59% | M10: 7881 | N10: 23.11%
A11: E10 | B11: 35342 | C11: 33249 | D11: 94.08% | E11: 16303 | F11: 46.13% | G11: 16251 | H11: 45.98% | I11: 12424 | J11: 35.15% | K11: 12423 | L11: 35.15% | M11: 10423 | N11: 29.49%
A12: E11 | B12: 40418 | C12: 35723 | D12: 88.38% | E12: 18037 | F12: 44.63% | G12: 17811 | H12: 44.07% | I12: 13773 | J12: 34.08% | K12: 13772 | L12: 34.07% | M12: 11579 | N12: 28.65%
A13: E12 | B13: 47962 | C13: 45121 | D13: 94.08% | E13: 22937 | F13: 47.82% | G13: 22323 | H13: 46.54% | I13: 17347 | J13: 36.17% | K13: 17342 | L13: 36.16% | M13: 14031 | N13: 29.25%
A14: E13 | B14: 49564 | C14: 45985 | D14: 92.78% | E14: 23816 | F14: 48.05% | G14: 23444 | H14: 47.30% | I14: 17890 | J14: 36.09% | K14: 17886 | L14: 36.09% | M14: 12876 | N14: 25.98%
A15: E14 | B15: 52425 | C15: 46948 | D15: 89.55% | E15: 18730 | F15: 35.73% | G15: 18528 | H15: 35.34% | I15: 15015 | J15: 28.64% | K15: 15015 | L15: 28.64% | M15: 11621 | N15: 22.17%
A16: E15 | B16: 77829 | C16: 69725 | D16: 89.59% | E16: 33494 | F16: 43.04% | G16: 33158 | H16: 42.60% | I16: 25741 | J16: 33.07% | K16: 25738 | L16: 33.07% | M16: 20572 | N16: 26.43%
A17: E16 | B17: 38649 | C17: 34079 | D17: 88.18% | E17: 16785 | F17: 43.43% | G17: 16686 | H17: 43.17% | I17: 13349 | J17: 34.54% | K17: 13348 | L17: 34.54% | M17: 10340 | N17: 26.75%
A18: E17 | B18: 57311 | C18: 49570 | D18: 86.49% | E18: 23825 | F18: 41.57% | G18: 23710 | H18: 41.37% | I18: 19650 | J18: 34.29% | K18: 19598 | L18: 34.20% | M18: 14234 | N18: 24.84%
A19: E18 | B19: 32325 | C19: 28297 | D19: 87.54% | E19: 12221 | F19: 37.81% | G19: 11893 | H19: 36.79% | I19: 8738 | J19: 27.03% | K19: 8736 | L19: 27.03% | M19: 6788 | N19: 21.00%
A20: E19 | B20: 86869 | C20: 77550 | D20: 89.27% | E20: 38538 | F20: 44.36% | G20: 38057 | H20: 43.81% | I20: 29153 | J20: 33.56% | K20: 29144 | L20: 33.55% | M20: 20639 | N20: 23.76%
A21: E20 | B21: 116387 | C21: 96894 | D21: 83.25% | E21: 41183 | F21: 35.38% | G21: 39180 | H21: 33.66% | I21: 30398 | J21: 26.12% | K21: 30385 | L21: 26.11% | M21: 22109 | N21: 19.00%
A22: E21 | B22: 61965 | C22: 52152 | D22: 84.16% | E22: 24959 | F22: 40.28% | G22: 24672 | H22: 39.82% | I22: 18064 | J22: 29.15% | K22: 18049 | L22: 29.13% | M22: 14364 | N22: 23.18%
A23: E22 | B23: 78014 | C23: 70278 | D23: 90.08% | E23: 34963 | F23: 44.82% | G23: 34601 | H23: 44.35% | I23: 26197 | J23: 33.58% | K23: 26195 | L23: 33.58% | M23: 19824 | N23: 25.41%
A24: E23 | B24: 60615 | C24: 52394 | D24: 86.44% | E24: 24688 | F24: 40.73% | G24: 24191 | H24: 39.91% | I24: 19532 | J24: 32.22% | K24: 19503 | L24: 32.18% | M24: 15092 | N24: 24.90%
A25: E24 | B25: 55158 | C25: 50059 | D25: 90.76% | E25: 22175 | F25: 40.20% | G25: 21385 | H25: 38.77% | I25: 17343 | J25: 31.44% | K25: 17319 | L25: 31.40% | M25: 14923 | N25: 27.06%
A26: E25 | B26: 30940 | C26: 27769 | D26: 89.75% | E26: 13272 | F26: 42.90% | G26: 13130 | H26: 42.44% | I26: 9402 | J26: 30.39% | K26: 9396 | L26: 30.37% | M26: 7291 | N26: 23.56%
A27: E26 | B27: 48956 | C27: 45243 | D27: 92.42% | E27: 21316 | F27: 43.54% | G27: 21152 | H27: 43.21% | I27: 17560 | J27: 35.87% | K27: 17551 | L27: 35.85% | M27: 14365 | N27: 29.34%
A28: E27 | B28: 84543 | C28: 74419 | D28: 88.03% | E28: 36641 | F28: 43.34% | G28: 36375 | H28: 43.03% | I28: 27998 | J28: 33.12% | K28: 27990 | L28: 33.11% | M28: 21780 | N28: 25.76%
A29: E28 | B29: 97244 | C29: 81458 | D29: 83.77% | E29: 38336 | F29: 39.42% | G29: 38069 | H29: 39.15% | I29: 30394 | J29: 31.26% | K29: 30389 | L29: 31.25% | M29: 24425 | N29: 25.12%
A30: E29 | B30: 58725 | C30: 55309 | D30: 94.18% | E30: 25641 | F30: 43.66% | G30: 25566 | H30: 43.54% | I30: 23121 | J30: 39.37% | K30: 23118 | L30: 39.37% | M30: 21690 | N30: 36.93%
A31: E30 | B31: 43082 | C31: 39754 | D31: 92.28% | E31: 18533 | F31: 43.02% | G31: 18520 | H31: 42.99% | I31: 14182 | J31: 32.92% | K31: 14182 | L31: 32.92% | M31: 11159 | N31: 25.90%
A32: E31 | B32: 55701 | C32: 50359 | D32: 90.41% | E32: 25269 | F32: 45.37% | G32: 24871 | H32: 44.65% | I32: 17731 | J32: 31.83% | K32: 17730 | L32: 31.83% | M32: 12668 | N32: 22.74%
A33: E32 | B33: 123224 | C33: 110754 | D33: 89.88% | E33: 50058 | F33: 40.62% | G33: 49041 | H33: 39.80% | I33: 38656 | J33: 31.37% | K33: 38656 | L33: 31.37% | M33: 29969 | N33: 24.32%
A34: E33 | B34: 100012 | C34: 94773 | D34: 94.76% | E34: 45832 | F34: 45.83% | G34: 45198 | H34: 45.19% | I34: 33444 | J34: 33.44% | K34: 33444 | L34: 33.44% | M34: 25822 | N34: 25.82%
A35: E34 | B35: 79501 | C35: 74438 | D35: 93.63% | E35: 36799 | F35: 46.29% | G35: 35781 | H35: 45.01% | I35: 27574 | J35: 34.68% | K35: 27574 | L35: 34.68% | M35: 20736 | N35: 26.08%
A36: E36 | B36: 60353 | C36: 54717 | D36: 90.66% | E36: 26019 | F36: 43.11% | G36: 25781 | H36: 42.72% | I36: 20463 | J36: 33.91% | K36: 20373 | L36: 33.76% | M36: 17223 | N36: 28.54%
A37: E37 | B37: 62398 | C37: 57167 | D37: 91.62% | E37: 26863 | F37: 43.05% | G37: 26474 | H37: 42.43% | I37: 19211 | J37: 30.79% | K37: 19201 | L37: 30.77% | M37: 14816 | N37: 23.74%
A38: E38 | B38: 36740 | C38: 34219 | D38: 93.14% | E38: 15238 | F38: 41.48% | G38: 15113 | H38: 41.14% | I38: 10376 | J38: 28.24% | K38: 10374 | L38: 28.24% | M38: 8008 | N38: 21.80%
A39: E39 | B39: 75528 | C39: 63513 | D39: 84.09% | E39: 22938 | F39: 30.37% | G39: 22790 | H39: 30.17% | I39: 17040 | J39: 22.56% | K39: 17030 | L39: 22.55% | M39: 13063 | N39: 17.30%
A40: E40 | B40: 53717 | C40: 50014 | D40: 93.11% | E40: 23686 | F40: 44.09% | G40: 23220 | H40: 43.23% | I40: 16749 | J40: 31.18% | K40: 16746 | L40: 31.17% | M40: 12848 | N40: 23.92%
A41: E41 | B41: 67621 | C41: 63032 | D41: 93.21% | E41: 26414 | F41: 39.06% | G41: 26171 | H41: 38.70% | I41: 20485 | J41: 30.29% | K41: 20481 | L41: 30.29% | M41: 15479 | N41: 22.89%
A42: E42 | B42: 47532 | C42: 43974 | D42: 92.51% | E42: 19389 | F42: 40.79% | G42: 19137 | H42: 40.26% | I42: 13345 | J42: 28.08% | K42: 13312 | L42: 28.01% | M42: 10155 | N42: 21.36%
A43: E43 | B43: 83819 | C43: 71738 | D43: 85.59% | E43: 32233 | F43: 38.46% | G43: 31304 | H43: 37.35% | I43: 24529 | J43: 29.26% | K43: 24523 | L43: 29.26% | M43: 20572 | N43: 24.54%
A44: E44 | B44: 71382 | C44: 65397 | D44: 91.62% | E44: 28257 | F44: 39.59% | G44: 28077 | H44: 39.33% | I44: 21299 | J44: 29.84% | K44: 21296 | L44: 29.83% | M44: 16171 | N44: 22.65%
A45: E45 | B45: 87856 | C45: 80374 | D45: 91.48% | E45: 33765 | F45: 38.43% | G45: 33529 | H45: 38.16% | I45: 27503 | J45: 31.30% | K45: 27497 | L45: 31.30% | M45: 20794 | N45: 23.67%
A46: E46 | B46: 81959 | C46: 75164 | D46: 91.71% | E46: 32796 | F46: 40.02% | G46: 32576 | H46: 39.75% | I46: 27246 | J46: 33.24% | K46: 27232 | L46: 33.23% | M46: 23430 | N46: 28.59%
A47: E47 | B47: 58349 | C47: 53782 | D47: 92.17% | E47: 26031 | F47: 44.61% | G47: 25707 | H47: 44.06% | I47: 20668 | J47: 35.42% | K47: 20667 | L47: 35.42% | M47: 18634 | N47: 31.94%
A48: E48 | B48: 34763 | C48: 29896 | D48: 86.00% | E48: 13756 | F48: 39.57% | G48: 13692 | H48: 39.39% | I48: 10031 | J48: 28.86% | K48: 10029 | L48: 28.85% | M48: 7916 | N48: 22.77%
A49: E49 | B49: 47965 | C49: 40474 | D49: 84.38% | E49: 20664 | F49: 43.08% | G49: 20525 | H49: 42.79% | I49: 15485 | J49: 32.28% | K49: 15484 | L49: 32.28% | M49: 11525 | N49: 24.03%
A50: E50 | B50: 32477 | C50: 29843 | D50: 91.89% | E50: 14967 | F50: 46.08% | G50: 14883 | H50: 45.83% | I50: 11084 | J50: 34.13% | K50: 11084 | L50: 34.13% | M50: 9415 | N50: 28.99%
A51: E51 | B51: 59682 | C51: 54360 | D51: 91.08% | E51: 27001 | F51: 45.24% | G51: 26876 | H51: 45.03% | I51: 19034 | J51: 31.89% | K51: 19012 | L51: 31.86% | M51: 15507 | N51: 25.98%
A52: E53 | B52: 48665 | C52: 41153 | D52: 84.56% | E52: 20532 | F52: 42.19% | G52: 20365 | H52: 41.85% | I52: 15736 | J52: 32.34% | K52: 15730 | L52: 32.32% | M52: 11386 | N52: 23.40%
A53: E54 | B53: 35009 | C53: 31852 | D53: 90.98% | E53: 15871 | F53: 45.33% | G53: 15575 | H53: 44.49% | I53: 10656 | J53: 30.44% | K53: 10656 | L53: 30.44% | M53: 7778 | N53: 22.22%
A54: TOTAL | B54: =SUM(B2:B53) -> 3088631 | C54: =SUM(C2:C53) -> 2777078 | D54: 89.91% | E54: =SUM(E2:E53) -> 1301318 | F54: 42.13% | G54: =SUM(G2:G53) -> 1283007 | H54: 41.54% | I54: =SUM(I2:I53) -> 989204 | J54: 32.03% | K54: =SUM(K2:K53) -> 988755 | L54: 32.01% | M54: =SUM(M2:M53) -> 777784 | N54: 25.18%
